bitfinex/quotes_BTCUSD_20241222
["timestamp","ask_amount","ask_price","bid_price","bid_amount"]
[1734872404243,0.004,97079.0,97076.0,0.0792]
[1734872404438,0.01922579,97080.0,97076.0,0.0792]
[1734872404989,0.002,97081.0,97076.0,0.0792]
[1734872405195,0.15,97084.0,97076.0,0.0792]
[1734872405455,0.001,97079.0,97076.0,0.0792]
[1734872405816,0.2513084,97084.0,97076.0,0.0792]
[1734872406016,0.002,97080.0,97076.0,0.0792]
[1734872407164,0.002,97080.0,97077.0,0.206022]
[1734872407391,0.002,97080.0,97078.0,0.0482]
[1734872407594,0.0001714,97091.0,97079.0,0.206017]
[1734872407807,0.0001714,97091.0,97080.0,0.206015]
[1734872408227,0.0001714,97091.0,97082.0,0.412022]
[1734872408608,0.15,97089.0,97081.0,0.0827]
[1734872408940,0.205998,97088.0,97081.0,0.0827]
[1734872409164,0.15,97087.0,97081.0,0.0827]
[1734872410078,0.206002,97086.0,97081.0,0.0827]
[1734872410278,0.15,97085.0,97081.0,0.0827]
[1734872410491,0.15,97089.0,97081.0,0.0827]
[1734872410838,0.205998,97088.0,97081.0,0.0827]
[1734872411033,0.15,97087.0,97081.0,0.0827]
[1734872411238,0.002,97086.0,97081.0,0.0827]
[1734872411539,0.15,97089.0,97081.0,0.0827]
[1734872411961,0.002,97088.0,97082.0,0.206011]
[1734872412483,0.0001714,97091.0,97082.0,0.206011]
[1734872413495,0.0001714,97091.0,97090.0,0.37427005]
[1734872415204,0.0011714,97091.0,97090.0,0.37427005]
[1734872416039,0.0001714,97091.0,97090.0,0.37427005]
[1734872416294,0.0001714,97091.0,97090.0,0.37627005]
[1734872416728,0.0001714,97091.0,97090.0,0.38676097]
[1734872417884,0.0001714,97091.0,97090.0,0.39817512]
[1734872418111,0.0001714,97091.0,97090.0,0.39617512]
[1734872418327,0.0001714,97091.0,97090.0,0.40017512]
[1734872418781,0.0001714,97091.0,97090.0,0.39617512]
[1734872418989,0.0011714,97091.0,97090.0,0.40117512]
[1734872422212,0.0011714,97091.0,97090.0,0.60248352]
[1734872422411,0.0011714,97091.0,97090.0,0.50248352]
[1734872423388,0.0011714,97091.0,97090.0,0.60248352]
[1734872424729,0.0001714,97091.0,97090.0,0.59748352]
[1734872425137,0.0011714,97091.0,97090.0,0.60248352]
[1734872425743,0.0011714,97091.0,97090.0,1.14698352]
[1734872425944,0.0001714,97091.0,97090.0,1.14198352]
[1734872426340,0.0011714,97091.0,97090.0,1.14698352]
[1734872427367,0.0011714,97091.0,97090.0,1.14706922]
[1734872428062,0.0011714,97091.0,97090.0,1.66204922]
[1734872439720,0.0011714,97091.0,97090.0,1.91204922]
[1734872441054,0.0001714,97101.0,97100.0,0.13737605]
[1734872441223,0.0001714,97115.0,97110.0,0.26707605]
[1734872441471,0.00022729,97111.0,97110.0,1.08921645]
[1734872441663,0.00022729,97111.0,97110.0,1.100463]
[1734872442404,0.00122729,97111.0,97110.0,1.105463]
[1734872442607,0.00022729,97111.0,97110.0,1.100463]
[1734872442818,0.00022729,97111.0,97110.0,1.11102787]
[1734872443021,0.00122729,97111.0,97110.0,1.11602787]
[1734872443827,0.00122729,97111.0,97110.0,1.01602787]
[1734872444080,0.00122729,97111.0,97110.0,1.11602787]
[1734872444418,0.00022729,97111.0,97110.0,0.90971947]
[1734872444633,0.00022729,97111.0,97110.0,0.73207855]
[1734872444826,0.00122729,97111.0,97110.0,0.7784546]
[1734872445369,0.00022729,97111.0,97110.0,0.5635026]
[1734872445545,0.00122729,97111.0,97110.0,0.5725026]
[1734872445745,0.00022729,97111.0,97110.0,0.5635026]
[1734872446126,0.00122729,97111.0,97110.0,0.5715026]
[1734872446773,0.00122729,97111.0,97110.0,0.53412655]
[1734872447193,0.10253569,97111.0,97110.0,0.53412655]
[1734872447588,0.10153569,97111.0,97110.0,0.52612655]
[1734872447970,0.10153569,97111.0,97110.0,0.52812655]
[1734872448230,0.10153569,97111.0,97110.0,0.52612655]
[1734872448574,0.00022729,97111.0,97110.0,0.52812655]
[1734872449417,0.00022729,97111.0,97110.0,0.5635026]
[1734872449745,0.00022729,97111.0,97110.0,0.5655026]
[1734872450944,0.00022729,97111.0,97110.0,0.5635026]
[1734872451347,0.00322729,97111.0,97110.0,0.5635026]
[1734872451730,0.00022729,97111.0,97110.0,0.52612655]
[1734872452139,0.10153569,97111.0,97110.0,0.52612655]
[1734872452339,0.13543569,97111.0,97110.0,0.52612655]
[1734872452715,0.13743569,97111.0,97110.0,0.52612655]
[1734872453142,0.17753569,97111.0,97110.0,0.52612655]
[1734872453954,0.17553569,97111.0,97110.0,0.52612655]
[1734872454363,0.17853569,97111.0,97110.0,0.52612655]
[1734872454557,0.17553569,97111.0,97110.0,0.52612655]
[1734872454996,0.17753569,97111.0,97110.0,0.52612655]
[1734872455194,0.17553569,97111.0,97110.0,0.52612655]
[1734872455604,0.17853569,97111.0,97110.0,0.52612655]
[1734872455796,0.17553569,97111.0,97110.0,0.52612655]
[1734872457224,0.17753569,97111.0,97110.0,0.52612655]
[1734872457624,0.17553569,97111.0,97110.0,0.52612655]
[1734872457984,0.17853569,97111.0,97110.0,0.52612655]
[1734872458161,0.17553569,97111.0,97110.0,0.52612655]
[1734872458619,0.17753569,97111.0,97110.0,0.52612655]
[1734872458933,0.17553569,97111.0,97110.0,0.52612655]
[1734872459140,0.17853569,97111.0,97110.0,0.52612655]
[1734872461183,0.33889538,97111.0,97110.0,0.52612655]
[1734872461383,5.41189538,97111.0,97110.0,0.52612655]
[1734872461587,5.50889538,97111.0,97110.0,0.51488]
[1734872461818,4.34389538,97111.0,97110.0,0.51488]
[1734872462177,4.34589538,97111.0,97110.0,0.51488]
[1734872462371,4.34389538,97111.0,97110.0,0.51488]
[1734872462779,4.35289538,97111.0,97110.0,0.51588]
[1734872463156,4.69427656,97111.0,97110.0,0.51588]
[1734872463562,4.69427656,97111.0,97110.0,0.00013542]
[1734872464212,2.04527656,97111.0,97110.0,0.00013542]
[1734872464415,1.37527656,97111.0,97110.0,0.00013542]
[1734872464614,0.29389538,97111.0,97110.0,0.00013542]
[1734872464791,0.27089538,97111.0,97110.0,0.00013542]
[1734872465208,0.26053569,97111.0,97110.0,0.00013542]
[1734872465415,0.11053569,97111.0,97110.0,0.00013542]
[1734872466083,0.205952,97110.0,97101.0,8.57e-05]
[1734872466280,0.1013084,97109.0,97101.0,8.57e-05]
[1734872466487,0.1013084,97109.0,97102.0,0.01147282]
[1734872466826,0.205952,97110.0,97101.0,8.57e-05]
[1734872467074,0.3072604,97110.0,97103.0,0.01147134]
[1734872467221,0.15,97109.0,97102.0,0.01147282]
[1734872467426,0.205956,97108.0,97101.0,8.57e-05]
[1734872467629,0.205956,97108.0,97103.0,0.01149399]
[1734872467872,0.15,97109.0,97101.0,8.57e-05]
[1734872468391,0.15,97109.0,97102.0,0.01149547]
[1734872468604,0.15,97109.0,97101.0,8.57e-05]
[1734872468764,0.155,97109.0,97103.0,0.01149399]
[1734872468966,0.15,97109.0,97102.0,0.01149547]
[1734872469431,0.155,97109.0,97104.0,0.01149251]
[1734872469547,0.15,97109.0,97103.0,0.01149399]
[1734872469770,0.1013084,97110.0,97103.0,0.205965]
[1734872469979,0.005,97109.0,97104.0,0.01149251]
[1734872470453,0.1013084,97110.0,97104.0,0.01149251]
[1734872470653,0.00022729,97111.0,97105.0,0.288062]
[1734872470868,0.00022729,97111.0,97109.0,0.205953]
[1734872471191,0.00022729,97111.0,97110.0,0.01148364]
[1734872471394,0.00022729,97111.0,97106.0,0.20596]
[1734872471625,0.00022729,97111.0,97110.0,0.01148364]
[1734872471798,0.00022729,97111.0,97106.0,0.20596]
[1734872471799,0.00022729,97111.0,97106.0,0.41192]
[1734872472010,0.005,97109.0,97106.0,0.41192]
[1734872472222,0.00022729,97111.0,97106.0,0.41192]
[1734872472511,0.00622729,97111.0,97106.0,0.41292]
[1734872472832,0.00622729,97111.0,97110.0,0.03737605]
[1734872473034,0.00022729,97111.0,97110.0,0.08657605]
[1734872474200,0.00022729,97111.0,97110.0,0.16867605]
[1734872475656,0.00122729,97111.0,97110.0,0.16867605]
[1734872475892,0.00022729,97111.0,97110.0,0.16867605]
[1734872476261,0.00022729,97111.0,97110.0,0.17067605]
[1734872476487,0.00022729,97111.0,97110.0,0.16867605]
[1734872476938,0.00022729,97111.0,97110.0,0.17267605]
[1734872477112,0.00022729,97111.0,97110.0,0.11947605]
[1734872478011,0.00022729,97111.0,97110.0,0.13093287]
[1734872478823,0.00022729,97111.0,97110.0,0.13493287]
[1734872479247,0.00022729,97111.0,97110.0,0.13093287]
[1734872479437,0.00122729,97111.0,97110.0,0.13093287]
[1734872479793,0.00022729,97111.0,97110.0,0.13093287]
[1734872480206,0.00122729,97111.0,97110.0,0.13093287]
[1734872480410,0.00022729,97111.0,97110.0,0.13093287]
[1734872480919,0.00122729,97111.0,97110.0,0.13093287]
[1734872482039,0.00022729,97111.0,97110.0,0.13093287]
[1734872483872,0.00022729,97111.0,97110.0,0.17783287]
[1734872485350,0.00022729,97111.0,97110.0,0.17886253]
[1734872485601,0.00022729,97111.0,97110.0,0.17886249]
[1734872485918,0.00022729,97111.0,97110.0,0.18386241]
[1734872486129,0.00022729,97111.0,97110.0,0.17886241]
[1734872486473,0.00022729,97111.0,97110.0,0.18386241]
[1734872486474,0.00122729,97111.0,97110.0,0.18386241]
[1734872486975,0.00022729,97111.0,97110.0,0.17886241]
[1734872487174,0.00022729,97111.0,97110.0,0.09355682]
[1734872487398,0.00022729,97111.0,97110.0,0.01145682]
[1734872487599,0.00022729,97111.0,97108.0,0.03746175]
[1734872487803,0.00022729,97111.0,97110.0,0.03737605]
[1734872488001,0.00022729,97111.0,97110.0,0.04878726]
[1734872488494,0.00122729,97111.0,97110.0,0.05678726]
[1734872489342,0.00022729,97111.0,97110.0,0.04878726]
[1734872489523,0.00122729,97111.0,97110.0,0.05378726]
[1734872489927,0.00022729,97111.0,97110.0,0.04878726]
[1734872490651,0.00022729,97111.0,97110.0,0.01141121]
[1734872490851,0.00022729,97111.0,97110.0,0.03737605]
[1734872491074,0.00022729,97111.0,97108.0,8.57e-05]
[1734872491236,0.00022729,97111.0,97109.0,0.01147895]
[1734872491678,0.00022729,97111.0,97108.0,8.57e-05]
[1734872491885,0.00122729,97111.0,97108.0,8.57e-05]
[1734872492058,0.00122729,97111.0,97109.0,0.01147895]
[1734872492262,0.00122729,97111.0,97108.0,8.57e-05]
[1734872492441,0.00222729,97111.0,97108.0,8.57e-05]
[1734872492656,0.00022729,97111.0,97108.0,8.57e-05]
[1734872493076,0.205952,97110.0,97109.0,0.01147895]
[1734872493309,0.205952,97110.0,97108.0,8.57e-05]
[1734872494088,0.1013084,97109.0,97108.0,8.57e-05]
[1734872494420,0.1013084,97109.0,97108.0,0.03746175]
[1734872494742,0.1013084,97109.0,97108.0,8.57e-05]
[1734872495698,0.1053084,97109.0,97108.0,8.57e-05]
[1734872498444,0.2553084,97109.0,97108.0,8.57e-05]
[1734872501144,4.5822084,97109.0,97108.0,8.57e-05]
[1734872501350,4.60141334,97109.0,97108.0,8.57e-05]
[1734872502136,4.76403729,97109.0,97108.0,8.57e-05]
[1734872502408,4.76486103,97109.0,97108.0,8.57e-05]
[1734872502623,4.76086103,97109.0,97108.0,8.57e-05]
[1734872502768,4.76986103,97109.0,97108.0,0.0010857]
[1734872503776,4.90851069,97109.0,97108.0,0.0010857]
[1734872503974,0.63851069,97109.0,97108.0,0.0010857]
[1734872504201,5.68851069,97109.0,97108.0,0.0010857]
[1734872504651,5.67951069,97109.0,97108.0,8.57e-05]
[1734872504952,5.63581909,97109.0,97108.0,8.57e-05]
[1734872505541,5.53451069,97109.0,97108.0,8.57e-05]
[1734872506200,5.39586103,97109.0,97108.0,8.57e-05]
[1734872507918,2.71986103,97109.0,97108.0,8.57e-05]
[1734872508126,2.14786103,97109.0,97108.0,8.57e-05]
[1734872509289,2.24028166,97109.0,97108.0,8.57e-05]
[1734872510754,2.14786103,97109.0,97108.0,8.57e-05]
[1734872512328,2.24916943,97109.0,97108.0,7e-07]
[1734872512489,2.24916943,97109.0,97075.0,8.57e-05]
[1734872512490,0.16262395,97091.0,97075.0,8.57e-05]
[1734872512688,5.72682435,97091.0,97075.0,8.57e-05]
[1734872512887,5.72779553,97091.0,97075.0,8.57e-05]
[1734872513117,0.206024,97076.0,97075.0,8.57e-05]
[1734872513314,0.4803324,97076.0,97075.0,8.57e-05]
[1734872514478,0.4803324,97076.0,97075.0,0.00013987]
[1734872514882,0.5803324,97076.0,97075.0,0.00013987]
[1734872515403,0.5873324,97076.0,97075.0,0.00013987]
[1734872515776,0.60805897,97076.0,97075.0,0.00013987]
[1734872516127,0.61832718,97076.0,97075.0,0.00013987]
[1734872521152,0.356049,97064.0,97053.0,8.57e-05]
[1734872521506,0.37907,97054.0,97053.0,8.57e-05]
[1734872521691,0.4803784,97054.0,97053.0,0.00013998]
[1734872522050,0.29353792,97054.0,97053.0,0.00013998]
[1734872522249,0.27053792,97054.0,97053.0,0.00013998]
[1734872522448,0.15,97057.0,97053.0,0.00013998]
[1734872522684,0.206065,97057.0,97053.0,0.00013998]
[1734872522883,0.15,97056.0,97053.0,0.00013998]
[1734872523478,0.004,97054.0,97053.0,0.00013998]
[1734872524608,0.02322381,97054.0,97053.0,0.00013998]
[1734872524809,0.01922381,97054.0,97053.0,0.00013998]
[1734872525684,0.02222381,97054.0,97053.0,0.00013998]
[1734872526508,0.01922381,97054.0,97053.0,0.00013998]
[1734872526868,0.2513084,97054.0,97053.0,0.00013998]
[1734872527918,0.2543084,97054.0,97053.0,0.00013998]
[1734872528218,0.2513084,97054.0,97053.0,0.00013998]
[1734872528580,0.2553084,97054.0,97053.0,0.00013998]
[1734872532365,0.2513084,97054.0,97053.0,0.00013998]
[1734872532764,0.2543084,97054.0,97053.0,0.00013998]
[1734872535544,0.2773084,97054.0,97053.0,0.00013998]
[1734872535741,0.29656858,97054.0,97053.0,0.00013998]
[1734872536468,0.30690398,97054.0,97053.0,0.00013998]
[1734872538417,0.30390398,97054.0,97053.0,0.00013998]
[1734872538929,0.30790398,97054.0,97053.0,0.00013998]
[1734872544853,0.32871169,97054.0,97053.0,0.00013998]
[1734872548156,0.3435389,97054.0,97053.0,0.00013998]
[1734872550752,0.34365083,97054.0,97053.0,0.00013998]
[1734872552525,0.44365083,97054.0,97053.0,0.00013998]
[1734872554435,0.50627478,97054.0,97053.0,0.00013998]
[1734872555239,0.4870146,97054.0,97053.0,0.00013998]
[1734872555661,0.50631243,97054.0,97053.0,0.00013998]
[1734872556190,0.84756062,97054.0,97053.0,0.00013998]
[1734872556388,0.82826279,97054.0,97053.0,0.00013998]
[1734872556861,0.273,97045.0,97033.0,0.0777]
[1734872556978,0.379111,97035.0,97033.0,0.0777]
[1734872557172,0.379111,97035.0,97034.0,0.00013998]
[1734872557173,0.49971725,97035.0,97034.0,0.00013998]
[1734872559632,0.50571725,97035.0,97034.0,0.00013998]
[1734872560533,0.49971725,97035.0,97034.0,0.00013998]
[1734872560938,0.50671725,97035.0,97034.0,0.00013998]
[1734872561828,0.51729887,97035.0,97034.0,0.00013998]
[1734872562033,0.60977868,97035.0,97034.0,0.00013998]
[1734872562234,0.59048083,97035.0,97034.0,0.00013998]
[1734872562517,0.60975163,97035.0,97034.0,0.00013998]
[1734872563377,0.51727182,97035.0,97034.0,0.00013998]
[1734872563579,0.53821941,97035.0,97034.0,0.00013998]
[1734872564217,4.60521941,97035.0,97034.0,0.00013998]
[1734872567211,0.53821941,97035.0,97034.0,0.00013998]
[1734872567624,3.56721941,97035.0,97034.0,0.00013998]
[1734872567804,3.56821941,97035.0,97034.0,0.00013998]
[1734872569818,2.87221941,97035.0,97034.0,0.00013998]
[1734872570028,2.30221941,97035.0,97034.0,0.00013998]
[1734872570737,1.54821941,97035.0,97034.0,0.00013998]
[1734872571694,0.53821941,97035.0,97034.0,0.00013998]
[1734872571912,0.49427182,97035.0,97034.0,0.12413998]
[1734872572099,0.3336902,97035.0,97034.0,0.12413998]
[1734872572311,0.0262708,97035.0,97034.0,0.12413998]
[1734872572471,0.0262708,97035.0,97034.0,0.17302283]
[1734872572677,0.0192708,97035.0,97034.0,0.17302283]
[1734872573130,0.0262708,97035.0,97034.0,0.17302283]
[1734872573349,0.0192708,97035.0,97034.0,0.17302283]
[1734872573756,0.0222708,97035.0,97034.0,0.17302283]
[1734872573939,0.0192708,97035.0,97034.0,0.17302283]
[1734872574644,0.0192708,97035.0,97034.0,0.13564678]
[1734872574799,0.2935792,97035.0,97034.0,0.13564678]
[1734872575202,0.2935792,97035.0,97034.0,0.12413998]
[1734872575408,0.2945792,97035.0,97034.0,0.12413998]
[1734872575604,0.2935792,97035.0,97034.0,0.12413998]
[1734872576015,0.3039339,97035.0,97034.0,0.12413998]
[1734872578890,0.26626882,97035.0,97034.0,0.12413998]
[1734872579281,0.27126882,97035.0,97034.0,0.12413998]
[1734872579496,0.24826882,97035.0,97034.0,0.12413998]
[1734872580005,0.15,97035.0,97034.0,0.12413998]
[1734872580413,0.155,97035.0,97034.0,0.13562954]
[1734872580646,0.15,97035.0,97034.0,0.13562954]
[1734872581021,0.155,97035.0,97034.0,0.13562954]
[1734872582313,0.12,97035.0,97034.0,0.13562954]
[1734872582706,0.125,97035.0,97034.0,0.13562954]
[1734872582924,0.12,97035.0,97034.0,0.13562954]
[1734872583271,0.125,97035.0,97034.0,0.13562954]
[1734872584079,0.2263084,97035.0,97034.0,0.08872954]
[1734872584301,0.2263084,97035.0,97034.0,0.07723998]
[1734872590135,0.2493084,97035.0,97034.0,0.07723998]
[1734872595084,0.24948,97035.0,97034.0,0.07723998]
[1734872595461,0.24948,97035.0,97034.0,0.00013998]
[1734872595661,0.26877966,97035.0,97034.0,0.00013998]
[1734872596841,0.26377966,97035.0,97034.0,0.00013998]
[1734872597137,0.27177966,97035.0,97034.0,0.00013998]
[1734872598754,0.61376471,97035.0,97034.0,0.00013998]
[1734872599768,5.66376471,97035.0,97034.0,0.00013998]
[1734872603728,5.72168123,97035.0,97034.0,0.00013998]
[1734872606368,0.67168123,97035.0,97034.0,0.00013998]
[1734872606572,0.67168123,97035.0,97034.0,0.08213998]
[1734872606895,0.61376471,97035.0,97034.0,0.08213998]
[1734872608524,0.79904313,97035.0,97034.0,0.08213998]
[1734872610871,0.61376471,97035.0,97034.0,0.08213998]
[1734872611069,0.61376471,97035.0,97034.0,0.00013998]
[1734872611070,4.71476471,97035.0,97034.0,0.00013998]
[1734872611472,4.77268123,97035.0,97034.0,0.00013998]
[1734872612270,4.95795965,97035.0,97034.0,0.00013998]
[1734872613569,4.23495965,97035.0,97034.0,0.00013998]
[1734872613776,2.09995965,97035.0,97034.0,0.00013998]
[1734872613999,2.04204313,97035.0,97034.0,0.00013998]
[1734872616064,0.79904313,97035.0,97034.0,0.07793998]
[1734872616237,1.19404313,97035.0,97034.0,0.07793998]
[1734872616438,1.19404313,97035.0,97034.0,0.04501587]
[1734872616844,1.21060538,97035.0,97034.0,0.04501587]
[1734872617046,1.21060538,97035.0,97024.0,0.0455]
[1734872617047,0.023,97032.0,97024.0,0.0455]
[1734872617352,5.3243084,97032.0,97024.0,0.0455]
[1734872618500,5.46325787,97032.0,97024.0,0.0455]
[1734872618693,0.61937487,97032.0,97024.0,0.0455]
[1734872618917,5.66937487,97032.0,97024.0,0.0455]
[1734872619196,5.74662108,97032.0,97024.0,0.0455]
[1734872619414,0.69662108,97032.0,97031.0,0.0753]
[1734872619606,0.70262108,97032.0,97031.0,0.0753]
[1734872620002,0.88632734,97032.0,97031.0,0.0753]
[1734872620202,0.88632734,97032.0,97031.0,0.0753857]
[1734872620489,0.84774105,97032.0,97031.0,0.0753857]
[1734872620850,0.84174105,97032.0,97031.0,0.0753857]
[1734872621293,0.50675563,97032.0,97031.0,0.0753857]
[1734872622624,0.49975563,97032.0,97031.0,0.0753857]
[1734872623033,0.50875563,97032.0,97031.0,0.0753857]
[1734872623251,0.49975563,97032.0,97031.0,0.0001857]
[1734872623417,5.54975563,97032.0,97031.0,0.0001857]
[1734872623635,5.55875563,97032.0,97031.0,0.0001857]
[1734872623830,5.95884502,97032.0,97031.0,0.0001857]
[1734872625091,6.18992779,97032.0,97031.0,0.0001857]
[1734872626118,6.18092779,97032.0,97031.0,0.0001857]
[1734872626276,6.18992779,97032.0,97031.0,0.0001857]
[1734872626678,6.18092779,97032.0,97031.0,0.0001857]
[1734872626872,6.18992779,97032.0,97031.0,0.0001857]
[1734872628034,5.95884502,97032.0,97031.0,0.0001857]
[1734872629003,0.90884502,97032.0,97031.0,0.0001857]
[1734872629597,0.89528136,97032.0,97031.0,0.0001857]
[1734872629764,5.94528136,97032.0,97031.0,0.0001857]
[1734872629969,0.20614,97021.0,97020.0,8.58e-05]
[1734872630170,0.4574484,97021.0,97020.0,8.58e-05]
[1734872630330,0.4740161,97021.0,97020.0,8.58e-05]
[1734872630755,0.47677863,97021.0,97020.0,8.58e-05]
[1734872631083,0.48177863,97021.0,97020.0,8.58e-05]
[1734872632065,0.8239515,97021.0,97020.0,8.58e-05]
[1734872632422,0.8189515,97021.0,97020.0,8.58e-05]
[1734872632784,0.8239515,97021.0,97020.0,8.58e-05]
[1734872633281,1.00941492,97021.0,97020.0,8.58e-05]
[1734872634105,1.00441492,97021.0,97020.0,8.58e-05]
[1734872634611,1.01041492,97021.0,97020.0,8.58e-05]
[1734872635120,1.02097108,97021.0,97020.0,8.58e-05]
[1734872635697,1.0414012,97021.0,97020.0,8.58e-05]
[1734872636075,0.85593778,97021.0,97020.0,8.58e-05]
[1734872637698,0.84993778,97021.0,97020.0,8.58e-05]
[1734872639032,0.85693778,97021.0,97020.0,8.58e-05]
[1734872639355,0.84993778,97021.0,97020.0,8.58e-05]
[1734872639750,0.85693778,97021.0,97020.0,8.58e-05]
[1734872642634,0.84993778,97021.0,97020.0,8.58e-05]
[1734872642807,0.85893778,97021.0,97020.0,8.58e-05]
[1734872643323,0.84993778,97021.0,97020.0,8.58e-05]
[1734872643487,0.85893778,97021.0,97020.0,8.58e-05]
[1734872644393,0.84993778,97021.0,97020.0,8.58e-05]
[1734872646737,1.04452776,97021.0,97020.0,8.58e-05]
[1734872647990,0.89851165,97021.0,97020.0,8.58e-05]
[1734872649113,0.88193778,97021.0,97020.0,8.58e-05]
[1734872650753,1.06748178,97021.0,97020.0,8.58e-05]
[1734872651460,5.16248178,97021.0,97020.0,8.58e-05]
[1734872651662,5.17348178,97021.0,97020.0,8.58e-05]
[1734872651958,4.98793778,97021.0,97020.0,8.58e-05]
[1734872652724,5.04591553,97021.0,97020.0,8.58e-05]
[1734872653124,4.45691553,97021.0,97020.0,8.58e-05]
[1734872653328,4.68874481,97021.0,97020.0,8.58e-05]
[1734872654512,1.17174481,97021.0,97020.0,8.58e-05]
[1734872654776,5.39191553,97021.0,97020.0,8.58e-05]
[1734872654977,5.43991553,97021.0,97020.0,8.58e-05]
[1734872655181,5.41991553,97021.0,97020.0,8.58e-05]
[1734872655573,5.38991553,97021.0,97020.0,8.58e-05]
[1734872655781,5.07891553,97021.0,97020.0,8.58e-05]
[1734872658687,5.09549341,97021.0,97020.0,8.58e-05]
[1734872659666,0.379143,97020.0,97017.0,8.58e-05]
[1734872659881,0.379147,97018.0,97017.0,0.00024872]
[1734872660083,0.4804554,97018.0,97017.0,0.00024872]
[1734872660289,0.49978563,97018.0,97017.0,0.00024872]
[1734872661299,1.0737807,97018.0,97017.0,0.00024872]
[1734872662260,1.02742353,97018.0,97017.0,0.00024872]
[1734872663101,1.03642353,97018.0,97017.0,0.00024872]
[1734872663308,1.03642353,97018.0,97017.0,0.12884872]
[1734872663549,0.50878563,97018.0,97017.0,0.12884872]
[1734872663702,0.30263863,97018.0,97017.0,0.12884872]
[1734872664536,0.37238268,97018.0,97017.0,0.12884872]
[1734872665976,0.12107428,97018.0,97017.0,0.12884872]
[1734872666117,0.12107428,97018.0,97017.0,0.13852225]
[1734872666313,0.12107428,97018.0,97017.0,0.1758983]
[1734872666745,0.13910674,97021.0,97020.0,0.11607605]
[1734872666949,0.09274822,97028.0,97025.0,0.206132]
[1734872667217,0.09274822,97028.0,97027.0,0.37210405]
[1734872667537,0.09274822,97028.0,97027.0,0.38170975]
[1734872668382,0.206054,97062.0,97039.0,0.03737605]
[1734872668583,0.206054,97062.0,97039.0,0.16597605]
[1734872668787,0.02017141,97040.0,97039.0,0.17556397]
[1734872669097,0.0009991,97059.0,97043.0,0.03737605]
[1734872669516,0.02107168,97055.0,97043.0,0.04695804]
[1734872670228,0.0041714,97044.0,97043.0,0.04695804]
[1734872670739,0.0001714,97044.0,97043.0,0.04695804]
[1734872670916,0.1014798,97044.0,97043.0,0.04695804]
[1734872671122,0.1014798,97044.0,97043.0,0.03737605]
[1734872671520,0.0001714,97044.0,97043.0,0.04689947]
[1734872671923,0.0001714,97044.0,97043.0,0.12559947]
[1734872673530,0.02087297,97055.0,97049.0,0.20608]
[1734872673730,0.15,97053.0,97049.0,0.20608]
[1734872673943,0.15,97053.0,97050.0,0.00951409]
[1734872674670,0.15005422,97053.0,97050.0,0.00951409]
[1734872674896,0.15005422,97053.0,97044.0,0.206092]
[1734872675072,0.15005422,97053.0,97051.0,0.0095126]
[1734872675266,0.15005422,97053.0,97049.0,0.20608]
[1734872675627,0.15005422,97053.0,97051.0,0.206077]
[1734872675832,0.15005422,97053.0,97052.0,0.13811112]
[1734872676551,0.00405422,97053.0,97052.0,0.13811112]
[1734872676924,5.422e-05,97053.0,97052.0,0.13811112]
[1734872677408,0.00405422,97053.0,97052.0,0.13811112]
[1734872679584,5.422e-05,97053.0,97052.0,0.13811112]
[1734872679985,5.422e-05,97053.0,97052.0,0.13911112]
[1734872683710,5.422e-05,97053.0,97052.0,0.17648717]
[1734872684212,0.00022562,97053.0,97052.0,0.17648717]
[1734872685555,0.00022562,97053.0,97052.0,0.17751744]
[1734872689767,0.00022562,97053.0,97052.0,0.17648717]
[1734872690184,0.00022562,97053.0,97052.0,0.09619492]
[1734872694836,0.00022562,97053.0,97052.0,0.04788717]
[1734872696347,0.10153402,97053.0,97052.0,0.001]
[1734872696632,0.25153402,97053.0,97052.0,0.001]
[1734872697240,0.25153402,97053.0,97052.0,0.0010857]
[1734872697437,0.25153402,97053.0,97052.0,8.57e-05]
[1734872697647,0.25153402,97053.0,97052.0,0.0010857]
[1734872699808,0.25153402,97053.0,97052.0,8.57e-05]
[1734872700048,0.25553402,97053.0,97052.0,8.57e-05]
[1734872707670,0.27853402,97053.0,97052.0,8.57e-05]
[1734872707873,0.3561387,97053.0,97052.0,8.57e-05]
[1734872708195,0.4561387,97053.0,97052.0,8.57e-05]
[1734872708340,5.5061387,97053.0,97052.0,8.57e-05]
[1734872710810,5.4021387,97053.0,97052.0,8.57e-05]
[1734872710943,0.76183402,97053.0,97052.0,8.57e-05]
[1734872711302,0.76183402,97053.0,97052.0,0.0010857]
[1734872711303,0.76883402,97053.0,97052.0,0.0010857]
[1734872711516,0.54283402,97053.0,97052.0,8.57e-05]
[1734872711691,0.25153402,97053.0,97052.0,8.57e-05]
[1734872711859,0.25853402,97053.0,97052.0,8.57e-05]
[1734872712261,0.10853402,97053.0,97052.0,8.57e-05]
[1734872713281,0.10153402,97053.0,97052.0,8.57e-05]
[1734872713685,0.10853402,97053.0,97052.0,0.0010857]
[1734872713891,0.25153402,97053.0,97052.0,8.57e-05]
[1734872714110,0.32683402,97053.0,97052.0,8.57e-05]
[1734872714280,0.35283402,97053.0,97052.0,8.57e-05]
[1734872715578,0.27753402,97053.0,97052.0,8.57e-05]
[1734872716037,0.25453402,97053.0,97052.0,8.57e-05]
[1734872722011,0.25453402,97053.0,97052.0,0.0803857]
[1734872722883,0.00322562,97053.0,97052.0,0.1292857]
[1734872723098,0.00322562,97053.0,97052.0,0.167692]
[1734872723269,0.00322562,97053.0,97052.0,0.17584641]
[1734872723817,0.00022562,97053.0,97052.0,0.17584641]
[1734872724026,0.00022562,97053.0,97052.0,0.17481616]
[1734872724226,0.00122562,97053.0,97052.0,0.17481616]
[1734872724662,0.00022562,97053.0,97052.0,0.17481616]
[1734872724882,0.00022562,97053.0,97052.0,0.17681616]
[1734872725327,0.00022562,97053.0,97052.0,0.17481616]
[1734872725532,0.00022562,97053.0,97052.0,0.17681616]
[1734872726670,0.00022562,97053.0,97052.0,0.09651616]
[1734872727022,0.00022562,97053.0,97052.0,0.04761616]
[1734872728860,0.00022562,97053.0,97052.0,0.01024011]
[1734872729429,0.25153402,97053.0,97052.0,0.0020857]
[1734872730346,0.25153402,97053.0,97052.0,8.57e-05]
[1734872730744,0.25253402,97053.0,97052.0,8.57e-05]
[1734872731565,0.25153402,97053.0,97052.0,8.57e-05]
[1734872731885,0.25353402,97053.0,97052.0,8.57e-05]
[1734872735453,0.33533402,97053.0,97052.0,8.57e-05]
[1734872735659,5.38533402,97053.0,97052.0,8.57e-05]
[1734872735881,5.40833402,97053.0,97052.0,8.57e-05]
[1734872736086,5.4089588,97053.0,97052.0,8.57e-05]
[1734872737931,4.5579588,97053.0,97052.0,8.57e-05]
[1734872738577,1.3089588,97053.0,97052.0,8.57e-05]
[1734872740616,1.32208699,97053.0,97052.0,8.57e-05]
[1734872742547,0.37208699,97053.0,97052.0,8.57e-05]
[1734872742965,5.42208699,97053.0,97052.0,8.57e-05]
[1734872743379,5.51470679,97053.0,97052.0,8.57e-05]
[1734872744345,1.89670679,97053.0,97052.0,8.57e-05]
[1734872744582,0.56408699,97053.0,97052.0,8.57e-05]
[1734872744746,0.29028699,97053.0,97052.0,8.57e-05]
[1734872745669,0.43928699,97053.0,97052.0,8.57e-05]
[1734872746680,0.39928699,97053.0,97052.0,8.57e-05]